bitfinex/quotes_ETHUSD_20250508
["timestamp","ask_amount","ask_price","bid_price","bid_amount"]
[1746743475818,5.92050026,2177.3,2176.6,7.47811583]
[1746743475819,4.5940539,2176.8,2176.6,7.47811583]
[1746743476023,4.59411035,2176.7,2176.6,3.66451583]
[1746743476318,4.59432141,2176.6,2176.5,6.11]
[1746743476723,4.59422435,2176.7,2176.5,6.11]
[1746743477019,4.59432141,2176.6,2176.5,6.11]
[1746743477227,4.59401788,2176.8,2176.5,6.11]
[1746743477432,0.7773,2176.9,2176.5,10.7044492]
[1746743477937,4.59422458,2176.7,2176.5,6.11]
[1746743478297,4.59421366,2176.7,2176.5,6.11]
[1746743478496,4.59409863,2176.8,2176.5,6.11]
[1746743478691,4.59356397,2177.0,2176.6,3.66451583]
[1746743478897,4.59329692,2177.1,2176.6,8.25871898]
[1746743479093,4.59356961,2177.0,2176.6,3.66451583]
[1746743479330,4.59329692,2177.1,2176.6,8.25872084]
[1746743479494,4.59347726,2177.0,2176.6,3.66451583]
[1746743479702,4.59348649,2177.0,2176.6,3.0]
[1746743479921,4.59387641,2176.9,2176.6,3.0]
[1746743480099,4.59358814,2177.0,2176.6,3.0]
[1746743480612,5.3898821,2177.1,2176.6,7.59428992]
[1746743480814,4.59358429,2177.0,2176.6,4.12588058]
[1746743481144,4.59389188,2176.9,2176.6,1.12588058]
[1746743481443,9.18729212,2177.0,2176.5,7.59451695]
[1746743481607,4.59347726,2177.0,2176.6,4.59430028]
[1746743481808,5.38985208,2177.1,2176.5,7.59437671]
[1746743482010,4.59370861,2176.9,2176.5,3.0]
[1746743482309,0.7965,2177.1,2176.5,7.59443631]
[1746743482511,4.5938115,2176.9,2176.5,9.8683795]
[1746743482708,0.7965,2177.1,2176.7,3.66451583]
[1746743483018,0.53963389,2177.3,2176.8,4.59386875]
[1746743483019,0.8204,2177.3,2176.8,4.59386875]
[1746743483217,4.59337801,2177.1,2176.8,1.3609205]
[1746743483437,5.01662874,2177.2,2176.8,1.3609205]
[1746743483759,0.42344662,2177.2,2177.0,8.25781012]
[1746743484054,0.42344662,2177.2,2177.1,4.59326627]
[1746743484233,0.42344662,2177.2,2177.0,8.25787959]
[1746743484545,4.5924225,2177.5,2177.1,5.04175188]
[1746743484742,5.41268838,2177.6,2177.1,8.34985878]
[1746743484912,4.5921106,2177.7,2177.3,3.66451583]
[1746743485106,4.59185508,2177.8,2177.4,4.59257358]
[1746743485307,3.489,2177.9,2177.4,3.0]
[1746743485513,8.08072297,2177.9,2177.4,7.59250669]
[1746743485852,4.59145374,2178.0,2177.6,3.66451583]
[1746743486013,4.59145374,2178.0,2177.6,4.43431583]
[1746743486219,4.59200073,2177.7,2177.6,4.43431583]
[1746743486422,4.59189327,2177.8,2177.6,4.43431583]
[1746743486616,4.59148157,2178.0,2177.6,4.43431583]
[1746743486827,4.59158403,2177.9,2177.6,4.43431583]
[1746743487014,4.59200073,2177.7,2177.6,3.66451583]
[1746743487208,4.59226545,2177.6,2177.3,7.46121583]
[1746743487514,4.592548,2177.5,2177.3,4.46121583]
[1746743487734,4.59263341,2177.4,2177.3,3.66451583]
[1746743487935,4.59292624,2177.3,2177.0,4.46121583]
[1746743488157,4.59304927,2177.3,2177.0,5.34342946]
[1746743488850,0.7823,2177.9,2177.0,5.38936204]
[1746743489024,4.59199367,2177.8,2177.4,4.59260364]
[1746743489437,0.7823,2177.9,2177.5,5.37667384]
[1746743489438,4.59167087,2177.9,2177.5,5.37667384]
[1746743489651,4.5921321,2177.7,2177.5,0.7843]
[1746743489953,9.60857132,2177.8,2177.5,1.52918158]
[1746743490154,4.59204289,2177.7,2177.5,0.7843]
[1746743490453,9.18424478,2177.7,2177.5,0.7843]
[1746743490654,4.59200073,2177.7,2177.5,0.7843]
[1746743491250,4.5922116,2177.6,2177.5,0.7843]
[1746743491455,4.59212642,2177.7,2177.5,0.7843]
[1746743491755,12.40030536,2178.2,2177.4,3.0]
[1746743492066,4.592314,2177.6,2177.4,9.11]
[1746743492221,1.27514328,2178.1,2177.4,9.11]
[1746743492222,4.59158037,2177.9,2177.4,9.11]
[1746743492550,4.59178987,2177.8,2177.4,6.11]
[1746743492954,4.59138001,2178.0,2177.4,6.11]
[1746743493160,4.5924225,2177.5,2177.4,6.11]
[1746743493725,5.01695435,2177.5,2177.4,6.11]
[1746743494119,5.01695435,2177.5,2177.0,3.07167866]
[1746743494120,4.59326627,2177.1,2177.0,3.07167866]
[1746743494554,0.42453185,2177.5,2177.0,3.85597866]
[1746743494753,4.59304611,2177.3,2177.0,3.85597866]
[1746743495056,4.59320801,2177.2,2177.0,3.85597866]
[1746743495364,0.7859,2177.7,2177.0,8.44934543]
[1746743495565,0.7859,2177.7,2177.2,4.59295456]
[1746743495566,4.59200073,2177.7,2177.2,4.59295456]
[1746743495862,4.59222988,2177.6,2177.2,4.59295456]
[1746743496158,4.59222988,2177.6,2177.2,3.0]
[1746743496366,4.59243456,2177.5,2177.1,3.0]
[1746743496537,4.59272302,2177.4,2177.1,4.26607883]
[1746743496732,4.59253414,2177.5,2177.1,7.59325217]
[1746743496937,4.59214378,2177.7,2177.2,4.59295491]
[1746743497339,0.42453697,2177.6,2177.2,4.59295491]
[1746743497546,0.42453697,2177.6,2177.2,4.63888055]
[1746743497745,5.01680721,2177.6,2177.2,4.63893823]
[1746743497949,5.01680721,2177.6,2177.3,0.76389382]
[1746743498147,0.8221,2178.3,2177.5,4.5924225]
[1746743498387,4.59116843,2178.1,2177.8,3.66451583]
[1746743498681,4.59139897,2178.0,2177.8,3.66451583]
[1746743499136,4.59157904,2177.9,2177.8,3.66451583]
[1746743499339,4.59196673,2177.8,2177.5,7.49301583]
[1746743499564,4.59210699,2177.7,2177.5,7.49301583]
[1746743499772,4.5924225,2177.5,2177.4,6.11]
[1746743501153,5.01663158,2177.5,2177.4,6.11]
[1746743501551,4.5930553,2177.2,2177.1,0.7717]
[1746743501752,4.59326627,2177.1,2177.0,6.11]
[1746743501986,0.7816,2177.5,2177.0,6.11]
[1746743502186,4.59277888,2177.4,2177.0,6.11]
[1746743502390,4.59278536,2177.4,2177.0,6.11]
[1746743502587,4.59278536,2177.4,2177.0,8.2785687]
[1746743502996,4.59278536,2177.4,2177.1,0.7866]
[1746743503350,4.59237708,2177.6,2177.2,3.0]
[1746743503557,0.42430245,2177.3,2177.2,13.7030553]
[1746743503777,0.42430245,2177.3,2177.2,14.4896553]
[1746743503952,0.42430245,2177.3,2177.2,20.28460527]
[1746743504384,4.59171703,2177.9,2177.5,3.0]
[1746743504579,4.59171703,2177.9,2177.6,0.7595]
[1746743505301,4.591795,2177.8,2177.6,0.7595]
[1746743505507,4.59176741,2177.9,2177.6,0.7595]
[1746743505666,0.42386485,2177.8,2177.6,0.7595]
[1746743506301,0.42386485,2177.8,2177.6,2.57674025]
[1746743506691,4.59200073,2177.7,2177.6,3.0]
[1746743506874,4.5922116,2177.6,2177.5,6.11]
[1746743508199,5.01607645,2177.6,2177.5,6.11]
[1746743510411,5.01607645,2177.6,2177.1,9.18167866]
[1746743510572,0.42386485,2177.6,2177.1,9.18167866]
[1746743510772,0.42386485,2177.6,2177.1,12.4568533]
[1746743510773,4.59279258,2177.4,2177.1,12.4568533]
[1746743511000,4.59286079,2177.3,2177.2,6.11]
[1746743511308,5.01670919,2177.3,2177.2,6.11]
[1746743511510,0.42386485,2177.3,2177.2,6.11]
[1746743511699,0.42386485,2177.3,2177.2,6.79695]
[1746743511905,0.42386485,2177.3,2177.2,9.79695]
[1746743512092,0.42386485,2177.3,2177.2,14.43593231]
[1746743512287,0.42386485,2177.3,2177.2,14.3900053]
[1746743512612,4.5924841,2177.5,2177.2,10.57265]
[1746743512821,4.59251196,2177.5,2177.3,6.11]
[1746743513113,4.59263341,2177.4,2177.3,6.11]
[1746743513473,5.01715781,2177.4,2177.3,6.11]
[1746743513679,0.4245244,2177.4,2177.3,6.11]
[1746743514090,5.01715781,2177.4,2177.3,6.11]
[1746743514586,0.4245244,2177.4,2177.3,6.11]
[1746743514796,0.4245244,2177.4,2177.3,7.09857]
[1746743515205,0.4245244,2177.4,2177.3,6.11]
[1746743515206,5.01715781,2177.4,2177.3,6.11]
[1746743515709,4.59129464,2178.1,2177.7,4.59190822]
[1746743516027,8.25918216,2178.4,2177.7,6.11]
[1746743516198,4.59094665,2178.2,2177.7,6.11]
[1746743516402,4.59178987,2177.8,2177.7,6.11]
[1746743516621,4.59168934,2177.9,2177.7,6.11]
[1746743517528,4.59178987,2177.8,2177.7,6.11]
[1746743517728,4.59170652,2177.9,2177.7,6.11]
[1746743518032,4.59178987,2177.8,2177.7,6.11]
[1746743518191,4.59164996,2177.9,2177.7,6.11]
[1746743518706,4.59094665,2178.2,2177.7,6.11]
[1746743518894,4.59178987,2177.8,2177.7,6.11]
[1746743519290,4.59206442,2177.7,2177.5,6.11]
[1746743519787,4.59186915,2177.8,2177.5,6.11]
[1746743520020,4.59170421,2177.9,2177.5,10.70238634]
[1746743520388,0.8309,2178.2,2177.6,0.0459179]
[1746743520595,4.59160893,2177.9,2177.6,0.0459179]
[1746743521302,8.07377094,2178.3,2178.0,3.0]
[1746743521303,4.59086879,2178.3,2178.0,3.0]
[1746743521516,0.7891,2178.7,2178.1,0.7597]
[1746743521723,4.59044491,2178.5,2178.1,6.8697]
[1746743521919,4.59056446,2178.4,2178.1,6.8697]
[1746743522610,0.8058,2178.9,2178.2,6.11]
[1746743522841,3.483,2179.0,2178.5,0.7784]
[1746743522842,4.58932471,2179.0,2178.5,0.7784]
[1746743522998,4.58959032,2178.9,2178.5,5.41460943]
[1746743523197,4.58959032,2178.9,2178.5,0.82429913]
[1746743523458,4.58989622,2178.7,2178.5,0.7784]
[1746743524032,4.59020631,2178.6,2178.2,0.35038583]
[1746743524231,0.7964,2178.9,2178.3,3.8206]
[1746743524440,4.58962795,2178.9,2178.3,8.41115122]
[1746743524603,4.58962795,2178.9,2178.4,4.59043615]
[1746743525139,4.58970195,2178.8,2178.4,4.59043615]
[1746743525436,4.58993798,2178.7,2178.3,8.41123885]
[1746743525606,5.38535128,2179.2,2178.4,4.59035539]
[1746743525797,5.38535128,2179.2,2178.3,3.8206]
[1746743525798,4.5898497,2178.8,2178.3,3.8206]
[1746743526001,4.58998212,2178.7,2178.3,3.8206]
[1746743526635,4.58998212,2178.7,2178.3,8.41122364]
[1746743526828,9.17969303,2178.8,2178.3,8.41126813]
[1746743527032,4.58980166,2178.8,2178.4,4.59049198]
[1746743527232,4.5896518,2178.9,2178.3,8.41113543]
[1746743527533,4.5896518,2178.9,2178.4,4.59043546]
[1746743527738,4.58978375,2178.8,2178.4,4.59043546]
[1746743528252,5.38524527,2179.2,2178.7,4.58975474]
[1746743528253,4.58893522,2179.2,2178.7,4.58975474]
[1746743528412,9.17798016,2179.2,2178.7,10.74564835]
[1746743528619,0.7955,2179.7,2178.8,0.785]
[1746743528942,0.53832705,2179.6,2179.1,0.785]
[1746743529107,4.58858755,2179.4,2179.1,0.785]
[1746743529312,4.58838569,2179.5,2179.1,0.785]
[1746743529512,4.58799779,2179.6,2179.0,3.0]
[1746743529770,4.58892805,2179.2,2179.0,3.0]
[1746743529971,4.58905052,2179.1,2179.0,9.11]
[1746743531335,4.58905052,2179.1,2179.0,6.11]
[1746743531753,4.58832351,2179.5,2179.0,6.11]
[1746743531967,4.58905052,2179.1,2179.0,6.11]
[1746743534364,4.58905052,2179.1,2178.9,6.11]
[1746743535095,4.5889533,2179.2,2178.9,6.11]
[1746743535597,5.1265988,2179.5,2178.8,0.785]
[1746743535598,4.58926112,2179.0,2178.8,0.785]
[1746743535770,4.58977832,2178.8,2178.7,3.0]
[1746743536092,4.58989305,2178.7,2178.6,6.11]
[1746743536295,4.58989305,2178.7,2178.5,6.11]
[1746743536465,0.7526,2179.2,2178.7,4.58970516]
[1746743536796,4.58854909,2179.4,2179.0,3.0]
[1746743537109,5.35530195,2179.2,2178.7,6.11]
[1746743537308,4.58968239,2178.8,2178.7,3.0]
[1746743537609,4.58995175,2178.7,2178.5,6.11]
[1746743537958,4.59010373,2178.6,2178.3,0.8309]
[1746743538160,0.54266235,2178.6,2178.2,9.18167866]
[1746743538359,4.59073589,2178.3,2178.2,3.07167866]
[1746743539395,5.39483589,2178.3,2178.2,3.07167866]
[1746743539587,5.39483589,2178.3,2177.8,6.11]
[1746743539588,4.59095908,2178.2,2177.8,6.11]
[1746743539768,4.59118525,2178.1,2177.8,6.11]
[1746743539973,1.22796436,2178.3,2177.7,6.11]
[1746743540180,1.8097941,2178.3,2177.7,6.11]
[1746743540383,0.42386436,2178.3,2178.0,4.59132826]
[1746743540595,8.04640899,2178.5,2178.0,4.59128991]
[1746743541504,4.59084088,2178.3,2177.8,7.59169519]
[1746743541700,4.59084088,2178.3,2177.8,7.63760717]
[1746743542004,4.59049713,2178.5,2178.1,4.59111251]
[1746743542202,4.59053018,2178.4,2178.0,0.7963]
[1746743542421,4.59053018,2178.4,2178.0,5.3876537]
[1746743542626,6.27881663,2178.5,2178.0,5.3876537]
[1746743542931,6.27881663,2178.5,2178.0,0.7963]
[1746743542932,4.59052761,2178.4,2178.0,0.7963]
[1746743543236,4.59106219,2178.2,2177.8,3.7963]
[1746743543534,0.42454221,2178.4,2178.0,4.5912596]
[1746743543733,5.01515585,2178.4,2178.0,4.59130851]
[1746743544093,0.42454221,2178.3,2178.0,4.59130851]
[1746743544321,0.42454221,2178.3,2178.1,4.59109797]
[1746743544621,0.42454221,2178.3,2178.2,3.0]
[1746743545433,8.83963977,2178.6,2178.2,3.0]
[1746743545748,5.93329318,2178.5,2178.2,3.0]
[1746743545931,4.59005154,2178.7,2178.3,0.7963]
[1746743546137,4.59054786,2178.4,2178.2,9.11]
[1746743546731,4.59065396,2178.4,2178.2,9.11]
[1746743547066,0.42555496,2178.3,2178.2,9.11]
[1746743547213,0.42555496,2178.3,2178.2,6.11]
[1746743547538,0.42555496,2178.3,2178.2,9.11]
[1746743547849,0.42555496,2178.3,2178.2,15.60981937]
[1746743548019,4.58979598,2178.8,2178.3,5.39066076]
[1746743548429,5.37308877,2178.9,2178.4,4.59048709]
[1746743548615,4.589686,2178.8,2178.4,4.59048709]
[1746743548812,0.42599565,2178.7,2178.5,4.59022553]
[1746743549059,0.42599565,2178.7,2178.5,0.04589811]
[1746743549353,0.42599565,2178.7,2178.4,12.80043807]
[1746743549716,0.42599565,2178.7,2178.5,0.04589819]
[1746743549924,4.58956541,2178.9,2178.5,0.04589819]
[1746743550228,4.58956541,2178.9,2178.5,4.63617682]
[1746743550755,0.426101,2178.8,2178.6,4.58994337]
[1746743550959,0.426101,2178.8,2178.7,5.38609305]
[1746743551166,0.426101,2178.8,2178.7,14.5419876]
[1746743551331,0.426101,2178.8,2178.7,14.49609305]
[1746743551534,0.426101,2178.8,2178.7,9.9062]
[1746743552024,4.58938848,2179.0,2178.8,3.0]
[1746743552230,4.58915769,2179.1,2178.8,3.0]
[1746743552644,5.01567972,2179.0,2178.8,3.0]
[1746743552846,4.58947175,2178.9,2178.8,3.0]
[1746743553048,5.01572172,2179.0,2178.7,0.7962]
[1746743553219,5.01567938,2179.0,2178.7,3.7962]
[1746743553424,0.42633918,2179.0,2178.7,3.7962]
[1746743553736,0.42633918,2178.9,2178.7,3.7962]
[1746743554331,0.42633918,2178.9,2178.7,8.38602704]
[1746743554542,8.88139517,2179.5,2178.7,3.7962]
[1746743554737,4.58916304,2179.1,2178.8,6.11]
[1746743555054,4.58914517,2179.1,2178.8,6.11]
[1746743555471,4.5892982,2179.0,2178.8,6.11]
[1746743555755,4.58989305,2178.7,2178.5,6.11]
[1746743555959,5.01640767,2178.6,2178.4,3.0]
[1746743556161,5.01640767,2178.6,2178.3,6.8746]
[1746743556350,0.42619907,2178.6,2178.4,4.59041901]
[1746743556551,0.42619907,2178.6,2178.4,7.59041901]
[1746743556748,4.58947566,2178.9,2178.6,0.7942]
[1746743556924,4.58905052,2179.1,2178.4,3.0]
[1746743557262,4.5900229,2178.7,2178.4,9.11]
[1746743557867,4.58977518,2178.8,2178.4,13.70051893]
[1746743558368,4.59005075,2178.7,2178.4,9.11]
[1746743558670,4.59023861,2178.6,2178.4,9.11]
[1746743558858,0.42618784,2178.6,2178.4,9.11]
[1746743559062,5.01633778,2178.6,2178.4,9.11]
[1746743559346,0.42618784,2178.6,2178.4,9.11]
[1746743559856,4.59001695,2178.7,2178.4,9.11]
[1746743560067,4.58980648,2178.8,2178.4,6.11]
[1746743560239,4.58991271,2178.7,2178.4,6.11]
[1746743561075,4.59031443,2178.5,2178.4,6.11]
[1746743561440,4.59094665,2178.2,2178.1,6.11]
[1746743561961,5.0178979,2178.2,2178.1,6.11]
[1746743562859,4.59136822,2178.0,2177.9,9.18270898]
[1746743563062,4.59169506,2177.9,2177.6,0.7954]
[1746743563360,4.59169506,2177.9,2177.6,3.7954]
[1746743564073,4.59149938,2178.0,2177.6,3.7954]
[1746743564428,0.42695125,2177.9,2177.6,3.7954]
[1746743564627,5.0185336,2177.9,2177.6,3.7954]
[1746743564853,5.0185336,2177.9,2177.6,5.64192642]
[1746743565492,0.42695125,2177.8,2177.6,5.64192642]
[1746743566490,4.59158235,2177.9,2177.6,5.64192642]
[1746743566792,4.59146389,2178.0,2177.6,10.23412093]
[1746743566985,9.18176562,2178.3,2177.8,4.59178417]
[1746743567188,0.42699262,2177.9,2177.8,9.07894146]
[1746743567392,0.42699262,2177.9,2177.8,15.18894146]
[1746743568101,4.59096822,2178.2,2177.8,10.59715729]
[1746743568402,4.59155421,2178.0,2177.8,9.11]
[1746743568603,4.59157904,2177.9,2177.8,9.11]
[1746743568901,4.59149642,2178.0,2177.8,9.11]
[1746743569502,4.59150135,2178.0,2177.8,9.11]
[1746743569971,0.42714949,2177.9,2177.8,9.11]
[1746743570385,0.42714949,2177.9,2177.8,4.44976038]
[1746743571105,0.42714949,2177.9,2177.8,5.22206038]
[1746743572193,5.01872853,2177.9,2177.8,3.0]
[1746743572594,0.42714949,2177.9,2177.8,3.0]
[1746743575820,0.42714949,2177.9,2177.8,7.63770385]
[1746743576417,5.01872853,2177.9,2177.8,9.11]
[1746743576733,4.59157904,2177.9,2177.8,9.11]
[1746743578294,0.7806,2178.4,2177.8,10.10282175]
[1746743578503,4.59103068,2178.2,2177.8,14.69457398]
[1746743578693,9.18179378,2178.3,2177.8,14.69457398]
[1746743579028,4.5914449,2178.0,2177.8,10.10282175]
[1746743579193,4.5914449,2178.0,2177.8,9.11]
[1746743580037,4.59086381,2178.3,2177.9,7.26845127]
[1746743580725,5.40889948,2178.5,2177.9,7.26833656]
[1746743580937,4.59052591,2178.4,2178.0,12.33909448]
[1746743581114,0.4271279,2178.3,2178.0,12.33909448]
[1746743581318,0.4271279,2178.3,2178.1,4.59112701]
[1746743581630,0.4271279,2178.3,2178.2,4.59094665]
[1746743582132,0.4271279,2178.3,2178.2,5.41084665]
[1746743582442,4.59002487,2178.7,2178.3,4.59066162]
[1746743582641,0.7675,2178.9,2178.3,4.59073589]
[1746743582815,4.58979586,2178.8,2178.5,1.87894725]
[1746743583017,5.83316889,2179.1,2178.5,6.11]
[1746743583216,1.24411,2179.1,2178.5,6.11]
[1746743583422,4.5894936,2178.9,2178.5,5.89862281]
[1746743583727,5.0173662,2178.8,2178.6,0.8101]
[1746743583925,0.42756033,2178.8,2178.6,0.85599748]
[1746743584126,0.42756033,2178.8,2178.6,0.8101]
[1746743584446,0.42756033,2178.8,2178.6,1.81625742]
[1746743584612,0.42756033,2178.8,2178.6,10.92625742]
[1746743584815,4.58930708,2179.0,2178.6,15.5163409]
[1746743585013,4.58930708,2179.0,2178.6,10.92625742]
[1746743585435,4.58947571,2178.9,2178.6,10.92625742]
[1746743585839,9.17914556,2178.9,2178.6,10.92625742]
[1746743586014,9.17915416,2178.9,2178.6,10.92625742]
[1746743586219,4.58979313,2178.8,2178.6,9.9201]
[1746743586544,4.58989305,2178.7,2178.6,6.11]
[1746743586713,4.59073589,2178.3,2178.2,3.08431882]
[1746743587117,6.2572832,2178.3,2178.2,3.08431882]
[1746743587820,6.6849078,2178.3,2178.2,3.08431882]
[1746743588416,7.2349078,2178.3,2178.2,3.08431882]
[1746743589608,5.78186049,2178.3,2178.2,3.08431882]
[1746743589814,5.78186049,2178.3,2177.7,5.44450642]
[1746743589815,4.59119537,2178.1,2177.7,5.44450642]
[1746743590057,4.59103688,2178.2,2177.7,5.44450642]
[1746743590355,4.59117237,2178.1,2177.7,5.44450642]
[1746743590661,1.1911246,2178.3,2177.7,1.85619774]
[1746743590662,4.59160749,2177.9,2177.7,1.85619774]
[1746743590817,0.4276246,2178.0,2177.7,1.81028506]
[1746743590818,5.01900861,2178.0,2177.7,1.81028506]
[1746743591019,0.4276246,2178.0,2177.7,1.81028506]
[1746743591219,0.4276246,2178.0,2177.7,1.8562]
[1746743591420,5.01910031,2178.0,2177.7,1.81028506]
[1746743591631,5.01902065,2178.0,2177.7,1.81028506]
[1746743591831,0.4276246,2177.9,2177.7,1.81028506]
[1746743592047,0.4276246,2177.9,2177.8,0.64024387]
[1746743594671,0.4276246,2177.9,2177.8,5.23203374]
[1746743595573,5.39520755,2178.5,2178.1,4.59110376]
[1746743595749,4.5902293,2178.6,2178.1,5.39280376]
[1746743595954,4.2113,2178.7,2178.1,5.39280376]
[1746743595955,4.59036275,2178.5,2178.1,5.39280376]
[1746743596642,4.59036275,2178.5,2178.1,0.8017]
[1746743596959,5.01804117,2178.4,2178.1,0.8017]
[1746743597164,0.42749852,2178.4,2178.1,0.8017]
[1746743597372,4.59073885,2178.3,2178.1,0.8017]
[1746743597759,0.42749852,2178.4,2177.8,1.41784387]
[1746743597943,4.59126595,2178.1,2177.8,2.53192873]
[1746743598153,5.01833798,2178.3,2177.8,7.12354548]
[1746743598340,0.42749852,2178.3,2178.2,5.36854665]
[1746743598732,0.42749852,2178.3,2178.2,8.36854665]
[1746743599545,4.59032462,2178.5,2178.3,3.0]
[1746743599754,4.59032462,2178.5,2178.2,3.7776]
[1746743599965,4.59032462,2178.5,2178.2,4.61447511]
[1746743600159,4.59019518,2178.6,2178.2,9.20540813]
[1746743600441,4.59019518,2178.6,2178.3,0.04590128]
[1746743600765,4.5906069,2178.4,2178.2,1.61447511]
[1746743600974,4.59073589,2178.3,2178.0,3.7835]
[1746743601188,4.59040827,2178.5,2178.0,8.42076206]
[1746743601478,5.49362401,2178.7,2178.0,3.7835]
[1746743601656,0.90363502,2178.7,2178.0,3.7835]
[1746743601848,4.59035294,2178.5,2178.1,4.59112057]
[1746743602168,4.59053187,2178.4,2178.0,9.36002078]
[1746743602365,4.59076952,2178.3,2178.0,4.03117611]
[1746743602542,4.59076952,2178.3,2178.0,3.98526848]
[1746743602749,4.59115743,2178.1,2177.9,3.08431882]
[1746743602980,4.59136822,2178.0,2177.9,3.08431882]
[1746743603481,5.0188395,2178.0,2177.9,3.08431882]
[1746743606064,4.59225241,2177.6,2177.4,3.86781882]
[1746743606540,4.59212776,2177.7,2177.4,3.86781882]
[1746743607559,4.59136822,2178.0,2177.4,3.86781882]
[1746743607762,5.12803504,2178.0,2177.4,3.86781882]
[1746743607970,4.59211122,2177.7,2177.4,3.86781882]
[1746743608939,5.12803504,2178.0,2177.4,3.86781882]
[1746743609139,4.59221821,2177.6,2177.4,3.86781882]
[1746743609341,4.59217539,2177.7,2177.1,3.08431882]
[1746743609342,5.40573304,2177.3,2177.1,3.08431882]
[1746743609574,4.5930553,2177.2,2177.1,3.08431882]
[1746743609774,5.02001593,2177.2,2177.1,3.08431882]
[1746743610438,7.45098095,2177.2,2177.1,3.08431882]
[1746743610651,5.02001593,2177.2,2177.1,3.08431882]
[1746743610881,6.70995689,2177.2,2177.1,3.08431882]
[1746743612276,2.90400159,2177.2,2176.5,3.08431882]
[1746743612443,4.59426418,2176.7,2176.5,3.08431882]
[1746743612990,4.59432141,2176.6,2176.5,3.08431882]
[1746743614593,8.80092141,2176.6,2176.5,3.08431882]
[1746743614742,9.22611818,2176.6,2176.5,3.08431882]
[1746743614938,9.77611818,2176.6,2176.5,3.08431882]
[1746743615179,11.21315642,2176.6,2176.5,3.08431882]
[1746743615574,21.30845832,2176.6,2176.5,3.08431882]
[1746743616144,6.45655642,2176.6,2176.5,3.08431882]
[1746743616345,4.59479087,2176.4,2176.2,0.8238]
[1746743616567,4.59506993,2176.3,2176.0,0.8238]
[1746743616870,9.18901761,2176.6,2176.1,4.595244]
[1746743617039,8.81140093,2176.9,2176.1,1.05199613]
[1746743617240,4.5947551,2176.4,2176.0,5.41927061]
[1746743617492,4.5938993,2176.8,2176.0,0.8238]
[1746743617493,4.59506326,2176.3,2176.0,0.8238]
[1746743617648,4.59483084,2176.4,2176.0,0.8238]
[1746743617870,8.81156992,2176.9,2176.1,4.64124807]
[1746743618057,4.59424769,2176.7,2176.2,4.59498093]
[1746743618382,4.2177,2176.9,2176.2,0.54647339]
[1746743618383,4.59408835,2176.8,2176.2,0.54647339]
[1746743618538,5.3944724,2176.9,2176.4,5.35752895]
[1746743618877,4.59419321,2176.7,2176.4,0.7629]
[1746743619043,16.542,2177.0,2176.6,4.59417459]
[1746743619241,0.8306,2177.2,2176.7,4.6399692]
[1746743619480,4.59306178,2177.2,2176.8,5.41716832]
[1746743619776,4.59306178,2177.2,2176.1,0.8234]
[1746743619777,4.59516588,2176.2,2176.1,0.8234]
[1746743619997,4.59620892,2175.8,2175.6,0.8234]
[1746743620289,3.417,2176.0,2175.3,3.90771882]
[1746743620448,4.59677936,2175.5,2175.3,4.2984907]
[1746743620643,4.59590131,2175.9,2175.3,8.89548039]
[1746743620858,4.59619122,2175.8,2175.4,3.0]
[1746743621179,0.7767,2176.3,2175.4,1.21224189]
[1746743621388,5.37273264,2175.8,2175.3,3.90771882]
[1746743621594,4.59685575,2175.4,2175.3,3.90771882]
[1746743621796,4.59685575,2175.4,2175.3,3.08431882]
[1746743622668,5.41075575,2175.4,2175.3,3.08431882]
[1746743622892,9.35590762,2175.4,2175.0,3.08431882]
[1746743623191,4.59708699,2175.3,2175.0,3.08431882]
[1746743623399,1.3639,2175.7,2175.1,3.0]
[1746743623564,0.8208,2176.0,2175.1,3.7929]
[1746743623763,4.59643477,2175.6,2175.2,0.68772188]
[1746743623970,4.59633262,2175.7,2175.2,5.28499556]
[1746743624171,4.59633262,2175.7,2175.2,5.33096352]
[1746743624757,4.59633262,2175.7,2175.2,5.28499556]
[1746743626083,4.59610234,2175.8,2175.3,4.5970262]
[1746743626280,5.36174545,2176.4,2175.6,3.0]
[1746743626480,4.59495473,2176.3,2175.4,8.80091878]
[1746743626791,4.59590703,2175.9,2175.4,8.38905162]
[1746743627358,4.59537705,2176.1,2175.5,4.5964842]
[1746743627695,4.59603354,2175.8,2175.4,8.38892998]
[1746743627896,4.59620964,2175.8,2175.4,3.7922]
[1746743628454,4.59620964,2175.8,2175.4,8.38904767]
[1746743628657,4.59588757,2175.9,2175.4,8.38904767]
[1746743628885,4.5954769,2176.1,2175.4,5.97932767]
[1746743629283,6.83,2176.3,2175.9,0.7916]
[1746743629459,4.59483304,2176.4,2176.0,4.59554982]
[1746743629890,4.59444542,2176.6,2176.1,4.5951879]
[1746743630096,4.59447795,2176.6,2176.1,4.5951879]
[1746743630306,4.59551241,2176.1,2175.9,3.7916]
[1746743630599,4.59525967,2176.2,2175.9,0.7916]
[1746743630961,4.59479621,2176.4,2176.0,4.59558712]
[1746743631161,4.59479621,2176.4,2175.9,0.7916]
[1746743631401,1.37534711,2176.6,2175.9,0.7916]
[1746743631571,4.59534997,2176.2,2175.9,0.7916]
[1746743631772,1.01841592,2176.5,2175.9,0.7916]
[1746743631990,4.59512134,2176.3,2175.9,0.7916]
[1746743632299,4.59517334,2176.2,2175.9,0.7916]
[1746743632525,1.01841592,2176.5,2175.9,0.7916]
[1746743632526,4.59474361,2176.4,2175.9,0.7916]
[1746743632674,4.59605549,2175.8,2175.3,7.9246019]
[1746743632874,0.55,2176.0,2175.3,8.84228388]
[1746743633080,4.59590161,2175.9,2175.4,4.59683009]
[1746743633405,4.595968,2175.9,2175.4,4.59683009]
[1746743633570,4.595968,2175.9,2175.4,7.59683009]
[1746743633765,4.595968,2175.9,2175.5,3.0]
[1746743633961,4.59537705,2176.1,2175.4,3.0]
[1746743634158,4.59616572,2175.8,2175.4,3.0]
[1746743634403,4.59623898,2175.7,2175.4,3.0]
[1746743634605,4.59568929,2176.0,2175.4,7.59674386]
[1746743634769,4.59602899,2175.8,2175.4,7.59674386]
[1746743635666,0.6502393,2176.1,2175.4,3.0]
[1746743635860,4.5954869,2176.1,2175.6,3.7988]
[1746743636090,4.59567531,2176.0,2175.7,3.0]
[1746743636478,4.59550555,2176.1,2175.7,3.0]
[1746743636700,1.35701595,2176.3,2175.6,0.7988]
[1746743636888,4.59524606,2176.2,2175.7,3.0]
[1746743637067,4.59559967,2176.0,2175.6,8.39513498]
[1746743637267,5.95207344,2176.3,2175.6,3.7988]
[1746743637480,4.59578245,2176.0,2175.6,3.7988]